bitfinex/quotes_BTCUSD_20250526
["timestamp","ask_amount","ask_price","bid_price","bid_amount"]
[1748273083792,0.01821211,109810.0,109800.0,1.89739635]
[1748273084001,0.05981675,109820.0,109810.0,0.20945167]
[1748273084250,0.21853874,109820.0,109810.0,1.78157024]
[1748273084444,0.24933874,109820.0,109810.0,1.57179846]
[1748273084649,0.24023335,109820.0,109810.0,1.55927946]
[1748273084831,0.24023335,109820.0,109810.0,1.56792863]
[1748273085207,0.24023335,109820.0,109810.0,1.56892863]
[1748273085649,0.24023335,109820.0,109810.0,1.54524963]
[1748273085810,0.23913335,109820.0,109810.0,1.59441286]
[1748273086022,0.23913335,109820.0,109810.0,1.19725441]
[1748273086023,0.27003335,109820.0,109810.0,1.19725441]
[1748273086431,0.26202771,109820.0,109810.0,1.19725458]
[1748273086636,0.25292199,109820.0,109810.0,1.19725458]
[1748273086829,0.24381619,109820.0,109810.0,1.05896558]
[1748273087026,0.24381619,109820.0,109810.0,1.01527958]
[1748273088127,0.24381619,109820.0,109810.0,0.83569156]
[1748273088743,0.24381619,109820.0,109810.0,0.80189156]
[1748273091027,0.24381619,109820.0,109810.0,0.81099819]
[1748273091476,0.24381619,109820.0,109810.0,0.62886542]
[1748273093393,0.24381619,109820.0,109810.0,0.81099819]
[1748273094788,0.24381619,109820.0,109810.0,0.82183415]
[1748273095024,0.24381619,109820.0,109810.0,0.63059475]
[1748273096410,0.24381619,109820.0,109810.0,0.82183415]
[1748273096624,0.24381619,109820.0,109810.0,0.63970138]
[1748273097757,0.24381619,109820.0,109810.0,0.63059475]
[1748273098175,0.24381619,109820.0,109810.0,0.97059475]
[1748273098827,0.24381619,109820.0,109810.0,0.85891975]
[1748273099492,0.24381619,109820.0,109810.0,0.87337037]
[1748273102217,0.38945619,109820.0,109810.0,0.87337037]
[1748273102420,0.24381619,109820.0,109810.0,0.87337037]
[1748273102625,0.33686199,109820.0,109810.0,0.87337037]
[1748273103664,0.33686199,109820.0,109810.0,1.04466718]
[1748273103897,0.33686199,109820.0,109810.0,0.86253441]
[1748273104347,0.33686199,109820.0,109810.0,0.36509979]
[1748273104578,0.37016199,109820.0,109810.0,0.86253441]
[1748273104802,0.40216199,109820.0,109810.0,0.86253441]
[1748273105456,0.25652199,109820.0,109810.0,0.86253441]
[1748273105683,0.22452199,109820.0,109810.0,0.86253441]
[1748273108289,0.25772199,109820.0,109810.0,0.86253441]
[1748273112984,0.22452199,109820.0,109810.0,0.86253441]
[1748273114554,0.25632199,109820.0,109810.0,0.86253441]
[1748273116565,0.28715804,109820.0,109810.0,0.86253441]
[1748273119329,0.28715804,109820.0,109810.0,0.87622551]
[1748273119486,0.28715804,109820.0,109810.0,1.05835828]
[1748273122783,0.28715804,109820.0,109810.0,0.87622551]
[1748273124080,0.28715804,109820.0,109810.0,0.88709799]
[1748273124292,0.22205804,109820.0,109810.0,1.06923076]
[1748273124527,0.36769804,109820.0,109810.0,1.44655976]
[1748273124753,0.36769804,109820.0,109810.0,1.45566639]
[1748273125303,0.35859224,109820.0,109810.0,1.18330462]
[1748273125507,0.35859224,109820.0,109810.0,1.17243214]
[1748273126147,0.21295224,109820.0,109810.0,1.36367146]
[1748273126281,0.21295224,109820.0,109810.0,1.17243214]
[1748273128104,0.21295224,109820.0,109810.0,1.16332551]
[1748273128521,0.03083605,109820.0,109810.0,1.34545828]
[1748273128730,0.03083605,109820.0,109810.0,1.9359118]
[1748273128944,0.03083605,109820.0,109810.0,2.03999821]
[1748273129565,0.03083605,109820.0,109810.0,2.40952101]
[1748273129993,0.01605881,109820.0,109810.0,2.40952101]
[1748273130225,0.01605881,109820.0,109810.0,2.42418768]
[1748273130426,0.07706543,109840.0,109830.0,1.26698277]
[1748273130427,0.08616933,109840.0,109830.0,1.26698277]
[1748273130636,0.07721464,109840.0,109830.0,3.14014077]
[1748273130850,0.05900718,109840.0,109830.0,3.14014077]
[1748273131272,0.04990361,109840.0,109830.0,3.14014077]
[1748273131456,0.05900718,109840.0,109830.0,3.14014077]
[1748273131659,0.06000718,109840.0,109830.0,3.15708054]
[1748273131832,0.05090361,109840.0,109830.0,3.15708054]
[1748273132046,0.06000718,109840.0,109830.0,3.15708054]
[1748273132245,0.06000718,109840.0,109830.0,3.19101598]
[1748273132466,0.04280021,109840.0,109830.0,3.19101598]
[1748273132677,0.05190369,109840.0,109830.0,3.19101598]
[1748273132905,0.04280021,109840.0,109830.0,3.19101598]
[1748273133102,0.01125269,109840.0,109830.0,3.19101598]
[1748273133253,0.00214921,109840.0,109830.0,3.19101598]
[1748273133463,0.01125261,109840.0,109830.0,3.19101598]
[1748273133862,0.00214921,109840.0,109830.0,3.19101598]
[1748273134578,0.00214921,109840.0,109830.0,3.17656668]
[1748273136514,0.00214921,109840.0,109830.0,3.0233256]
[1748273137276,0.00214921,109840.0,109830.0,3.15472594]
[1748273137482,0.00214921,109840.0,109830.0,3.21199539]
[1748273137687,0.00214921,109840.0,109830.0,3.15472594]
[1748273138589,0.00114921,109840.0,109830.0,3.15472594]
[1748273138794,0.00014921,109840.0,109830.0,3.15472594]
[1748273139172,0.00014921,109840.0,109830.0,3.00908594]
[1748273139393,0.00014921,109840.0,109830.0,3.15468594]
[1748273140235,0.00925261,109840.0,109830.0,3.15468594]
[1748273141215,0.00014921,109840.0,109830.0,2.53837887]
[1748273141426,0.00014921,109840.0,109830.0,3.21791309]
[1748273142039,0.00014921,109840.0,109830.0,4.35174771]
[1748273142249,1e-08,109840.0,109830.0,4.35174771]
[1748273142667,1e-08,109840.0,109830.0,4.34091074]
[1748273142917,1e-08,109840.0,109830.0,3.84347612]
[1748273143535,1e-08,109840.0,109830.0,3.84547612]
[1748273143749,1e-08,109840.0,109830.0,3.84747612]
[1748273144374,1e-08,109840.0,109830.0,3.91197612]
[1748273144792,0.00208001,109850.0,109840.0,0.62843531]
[1748273145020,0.00217053,109850.0,109840.0,6.76285011]
[1748273146458,0.00217053,109850.0,109840.0,7.05925011]
[1748273146658,0.00217053,109850.0,109840.0,7.07870049]
[1748273146989,0.00217053,109850.0,109840.0,7.37718049]
[1748273147431,0.00217053,109850.0,109840.0,7.39412026]
[1748273152105,0.00217053,109850.0,109840.0,7.24852026]
[1748273152260,0.00217053,109850.0,109840.0,7.32962026]
[1748273152472,0.0112731,109850.0,109840.0,6.91138926]
[1748273152705,0.00217053,109850.0,109840.0,4.69716873]
[1748273153870,0.00217053,109850.0,109840.0,4.39868873]
[1748273154103,0.00217053,109850.0,109840.0,4.69716873]
[1748273154617,0.00217053,109850.0,109840.0,4.46696973]
[1748273158421,0.00217053,109850.0,109840.0,4.45252043]
[1748273161217,0.00221053,109850.0,109840.0,4.45252043]
[1748273162363,0.03291053,109850.0,109840.0,4.45252043]
[1748273162663,0.03291053,109850.0,109840.0,4.30692043]
[1748273162928,0.06361053,109850.0,109840.0,4.45248043]
[1748273164258,0.06361053,109850.0,109840.0,4.15608043]
[1748273166920,0.04177752,109850.0,109840.0,4.15608043]
[1748273167129,0.0307,109850.0,109840.0,4.15608043]
[1748273168379,0.04890539,109850.0,109840.0,2.12941302]
[1748273168623,0.04890539,109850.0,109840.0,2.27497302]
[1748273169040,0.03980257,109850.0,109840.0,2.27497302]
[1748273169220,0.0307,109850.0,109840.0,2.27497302]
[1748273169398,0.05085406,109860.0,109850.0,0.20937541]
[1748273169599,0.05090335,109860.0,109850.0,3.83770542]
[1748273169989,0.09000542,109860.0,109850.0,3.81486442]
[1748273170193,0.09000542,109860.0,109850.0,3.80036642]
[1748273170389,0.09910774,109860.0,109850.0,3.02229393]
[1748273170592,0.10010766,109860.0,109850.0,3.02229393]
[1748273170800,0.10110766,109860.0,109850.0,3.02229393]
[1748273172579,0.10110766,109860.0,109850.0,2.8040532]
[1748273172757,0.10110766,109860.0,109850.0,2.98611965]
[1748273173157,0.10110766,109860.0,109850.0,3.01342861]
[1748273173369,0.09200542,109860.0,109850.0,3.01342861]
[1748273173576,0.09200551,109860.0,109850.0,3.01342861]
[1748273173928,0.10110783,109860.0,109850.0,3.01342861]
[1748273174130,0.10110783,109860.0,109850.0,2.52485931]
[1748273174437,0.09200551,109860.0,109850.0,2.52485931]
[1748273175154,0.10110775,109860.0,109850.0,2.45547231]
[1748273175351,0.10110775,109860.0,109850.0,2.24126031]
[1748273175536,0.09200542,109860.0,109850.0,2.24126031]
[1748273176095,0.10110758,109860.0,109850.0,2.24126031]
[1748273177170,0.09200542,109860.0,109850.0,2.24126031]
[1748273177946,0.10110758,109860.0,109850.0,2.24126031]
[1748273179641,0.08290335,109860.0,109850.0,2.24126031]
[1748273179841,0.08290351,109860.0,109850.0,2.73869493]
[1748273180070,0.1011075,109860.0,109850.0,2.73869493]
[1748273180259,0.11020982,109860.0,109850.0,2.73869493]
[1748273180669,0.1011075,109860.0,109850.0,2.73869493]
[1748273181134,0.11020982,109860.0,109850.0,2.73869493]
[1748273181981,0.11020974,109860.0,109850.0,2.73869493]
[1748273182415,0.11021032,109860.0,109850.0,2.73869493]
[1748273183005,0.11021032,109860.0,109850.0,2.72422859]
[1748273183949,0.11021032,109860.0,109850.0,2.72282097]
[1748273184957,0.29226078,109860.0,109850.0,1.58379935]
[1748273185163,0.1102109,109860.0,109850.0,0.99491235]
[1748273185380,0.1102109,109860.0,109850.0,1.98837397]
[1748273186203,0.10110849,109860.0,109850.0,1.98837397]
[1748273186509,0.10110849,109860.0,109850.0,2.04564342]
[1748273186715,0.10110849,109860.0,109850.0,1.98837397]
[1748273187001,0.28315837,109860.0,109850.0,1.83371123]
[1748273187205,0.26495414,109860.0,109850.0,0.52231975]
[1748273187428,0.26495414,109860.0,109850.0,0.86231975]
[1748273188345,0.26495414,109860.0,109850.0,0.88052321]
[1748273188784,0.26495414,109860.0,109850.0,0.8950039]
[1748273189695,0.26495414,109860.0,109850.0,1.0153999]
[1748273190105,0.26495414,109860.0,109850.0,1.01552882]
[1748273192478,0.26495414,109860.0,109850.0,1.19759527]
[1748273192687,0.26495414,109860.0,109850.0,1.20669859]
[1748273193289,0.26495414,109860.0,109850.0,1.21580182]
[1748273193431,0.26495414,109860.0,109850.0,1.23400804]
[1748273193922,0.26495414,109860.0,109850.0,1.21580182]
[1748273194849,0.26495414,109860.0,109850.0,1.22490497]
[1748273197696,0.2558519,109860.0,109850.0,0.89513282]
[1748273197933,0.2558519,109860.0,109850.0,1.07719927]
[1748273198168,0.2558519,109860.0,109850.0,1.19279359]
[1748273198375,0.2558519,109860.0,109850.0,0.58033954]
[1748273198587,0.2558519,109860.0,109850.0,0.89513282]
[1748273199008,0.2558519,109860.0,109850.0,0.39827309]
[1748273199216,0.2558519,109860.0,109850.0,0.89513282]
[1748273200677,0.2558519,109860.0,109850.0,0.39827309]
[1748273200868,0.2558519,109860.0,109850.0,0.89513282]
[1748273202300,0.2558519,109860.0,109850.0,0.90598501]
[1748273202943,0.34539746,109860.0,109850.0,0.40912528]
[1748273203320,0.34539746,109860.0,109850.0,0.90598501]
[1748273204438,0.49099746,109860.0,109850.0,0.40912528]
[1748273204674,0.49099746,109860.0,109850.0,0.90598501]
[1748273205091,0.49099746,109860.0,109850.0,0.40912528]
[1748273205291,0.49099746,109860.0,109850.0,0.90598501]
[1748273205718,0.49099746,109860.0,109850.0,0.89150432]
[1748273205930,0.49099746,109860.0,109850.0,0.39464459]
[1748273206140,0.49099746,109860.0,109850.0,0.89150432]
[1748273206781,0.49099746,109860.0,109850.0,0.39464459]
[1748273207549,0.52678723,109860.0,109850.0,0.05464459]
[1748273207743,0.49099746,109860.0,109850.0,0.05464459]
[1748273208315,0.98785719,109860.0,109850.0,0.02558894]
[1748273208546,0.49099746,109860.0,109850.0,0.02558894]
[1748273209301,0.55387171,109860.0,109850.0,0.02558894]
[1748273209758,0.40827171,109860.0,109850.0,0.86793973]
[1748273209957,0.33693063,109860.0,109850.0,1.05361835]
[1748273210590,0.33693063,109860.0,109850.0,1.0627215]
[1748273210802,0.32782856,109860.0,109850.0,1.05361835]
[1748273210979,0.31872624,109860.0,109850.0,1.06272167]
[1748273211437,0.31872624,109860.0,109850.0,1.07182482]
[1748273211596,0.31872624,109860.0,109850.0,1.08267701]
[1748273212120,0.31872624,109860.0,109850.0,1.07357386]
[1748273212328,0.31872624,109860.0,109850.0,0.87330086]
[1748273212329,0.30962383,109860.0,109850.0,0.87330086]
[1748273212495,0.30962383,109860.0,109850.0,1.05536731]
[1748273212701,0.30962383,109860.0,109850.0,0.87330086]
[1748273212912,0.24674958,109860.0,109850.0,0.87330086]
[1748273213407,0.39234958,109860.0,109850.0,0.87330086]
[1748273214029,0.24674958,109860.0,109850.0,0.87330086]
[1748273214228,0.39234958,109860.0,109850.0,0.87330086]
[1748273215079,0.33629514,109860.0,109850.0,0.87330086]
[1748273215263,0.48189514,109860.0,109850.0,0.87330086]
[1748273218061,0.33629514,109860.0,109850.0,1.05536731]
[1748273218272,0.48189514,109860.0,109850.0,0.87330086]
[1748273219112,0.33629514,109860.0,109850.0,1.05536731]
[1748273219311,0.48189514,109860.0,109850.0,1.05536731]
[1748273219519,0.48189514,109860.0,109850.0,0.87330086]
[1748273221627,0.33629514,109860.0,109850.0,0.87330086]
[1748273221829,0.34539713,109860.0,109850.0,1.12173999]
[1748273222020,0.40145157,109860.0,109850.0,1.07357369]
[1748273222220,0.39234958,109860.0,109850.0,1.06447054]
[1748273222463,0.39234958,109860.0,109850.0,1.05536731]
[1748273222661,0.39234958,109860.0,109850.0,1.07357378]
[1748273222810,0.21295655,109860.0,109850.0,1.08267677]
[1748273223021,0.21295655,109860.0,109850.0,1.07357378]
[1748273223223,0.20385431,109860.0,109850.0,1.07357378]
[1748273223463,0.21864958,109860.0,109850.0,1.06447063]
[1748273223647,0.18564958,109860.0,109850.0,1.07357378]
[1748273224246,0.21684958,109860.0,109850.0,1.08805447]
[1748273225759,0.23505415,109860.0,109850.0,1.09715746]
[1748273225957,0.23505415,109860.0,109850.0,1.08805447]
[1748273226684,0.22595199,109860.0,109850.0,1.08805447]
[1748273227308,0.22595199,109860.0,109850.0,0.89257999]
[1748273227706,0.22595199,109860.0,109850.0,0.72246553]
[1748273229277,0.22595199,109860.0,109850.0,0.70798484]
[1748273229697,0.22595199,109860.0,109850.0,0.71708783]
[1748273229940,0.22595199,109860.0,109850.0,0.70798484]
[1748273230162,0.01270161,109860.0,109850.0,3.06459021]
[1748273230312,0.030906,109860.0,109850.0,2.74033121]
[1748273231028,0.04000841,109860.0,109850.0,2.62358821]
[1748273231429,0.22205829,109860.0,109850.0,2.62358821]
[1748273231875,0.04000841,109860.0,109850.0,2.12672848]
[1748273234487,0.04000841,109860.0,109850.0,2.27916848]
[1748273234913,0.04000841,109860.0,109850.0,2.31186848]
[1748273235529,0.04000841,109860.0,109850.0,2.77602821]
[1748273235940,0.22205829,109860.0,109850.0,2.77602821]
[1748273236167,0.22205829,109860.0,109850.0,3.19216906]
[1748273236168,0.0035997,109860.0,109850.0,3.19216906]
[1748273236420,0.0035997,109860.0,109850.0,3.28171462]
[1748273237056,0.0025997,109860.0,109850.0,3.28171462]
[1748273237272,0.0025997,109860.0,109850.0,3.28834312]
[1748273237479,0.0015997,109860.0,109850.0,3.28834312]
[1748273237698,0.0015997,109860.0,109850.0,3.28534312]
[1748273237907,0.0015997,109860.0,109850.0,3.28734312]
[1748273238098,0.0015997,109860.0,109850.0,3.28934312]
[1748273238315,0.0015997,109860.0,109850.0,3.27486243]
[1748273239243,0.0015997,109860.0,109850.0,3.29179139]
[1748273239683,0.02934317,109870.0,109860.0,0.54935636]
[1748273239864,0.02984034,109870.0,109860.0,3.90294282]
[1748273240079,0.02984034,109870.0,109860.0,3.38678582]
[1748273240297,0.02984034,109870.0,109860.0,3.44251478]
[1748273240838,0.03894175,109870.0,109860.0,2.99857378]
[1748273241025,0.02984034,109870.0,109860.0,2.99857378]
[1748273241157,0.23007672,109870.0,109860.0,2.21115545]
[1748273241365,0.07074175,109870.0,109860.0,2.18811536]
[1748273241611,0.07074175,109870.0,109860.0,2.16687936]
[1748273243033,0.07984324,109870.0,109860.0,2.16687936]
[1748273243241,0.1106439,109870.0,109860.0,2.02452236]
[1748273243621,0.10154232,109870.0,109860.0,2.02452236]
[1748273244187,0.26537363,109870.0,109860.0,1.44993308]
[1748273244360,0.26537363,109870.0,109860.0,1.9558953]
[1748273244668,0.26537363,109870.0,109860.0,1.97582809]
[1748273244880,0.26537363,109870.0,109860.0,1.98493041]
[1748273245228,0.26537363,109870.0,109860.0,1.97582809]
[1748273245445,0.26537363,109870.0,109860.0,1.98493041]
[1748273247338,0.26537363,109870.0,109860.0,1.99359438]
[1748273247972,0.26537363,109870.0,109860.0,2.00201816]
[1748273248146,0.26537363,109870.0,109860.0,1.992916]
[1748273248350,0.26537363,109870.0,109860.0,2.00201824]
[1748273248587,0.26537363,109870.0,109860.0,2.010443]
[1748273248823,0.20277363,109870.0,109860.0,2.010443]
[1748273249061,0.23467363,109870.0,109860.0,2.010443]
[1748273249270,0.23467363,109870.0,109860.0,2.01044242]
[1748273250056,0.05264032,109870.0,109860.0,2.01044242]
[1748273250293,0.23467363,109870.0,109860.0,2.01044242]
[1748273251887,0.26467363,109870.0,109860.0,2.01044242]
[1748273253755,0.08264032,109870.0,109860.0,2.01044242]
[1748273254070,0.26467363,109870.0,109860.0,2.01044242]
[1748273254366,0.26467363,109870.0,109860.0,1.99961204]
[1748273256963,0.26467363,109870.0,109860.0,1.99051013]
[1748273257940,0.26467363,109870.0,109860.0,1.9905103]
[1748273258710,0.26467363,109870.0,109860.0,1.98140814]
[1748273259085,0.25557214,109870.0,109860.0,1.97230582]
[1748273259487,0.24647048,109870.0,109860.0,1.96320366]
[1748273259826,0.24647048,109870.0,109860.0,1.97230607]
[1748273259975,0.33601604,109870.0,109860.0,0.37868183]
[1748273260178,0.33601604,109870.0,109860.0,0.68933717]
[1748273261103,0.33601604,109870.0,109860.0,0.68573508]
[1748273265432,0.24647048,109870.0,109860.0,0.86778496]
[1748273265652,0.24647048,109870.0,109860.0,0.68573508]
[1748273265857,0.24647048,109870.0,109860.0,1.72284926]
[1748273266057,0.23467355,109870.0,109860.0,1.73195149]
[1748273266564,0.23467355,109870.0,109860.0,1.72284942]
[1748273267189,0.26737355,109870.0,109860.0,1.72284942]
[1748273267542,0.26737355,109870.0,109860.0,1.73729393]
[1748273268197,0.26737355,109870.0,109860.0,1.74639617]
[1748273271007,0.26737355,109870.0,109860.0,1.04017959]
[1748273271142,0.25827214,109870.0,109860.0,1.37689188]
[1748273271343,0.25827214,109870.0,109860.0,1.3859942]
[1748273271548,0.25827214,109870.0,109860.0,1.37515178]
[1748273272328,0.25827214,109870.0,109860.0,1.36604946]
[1748273273142,0.25827214,109870.0,109860.0,0.86008732]
[1748273273143,0.24917048,109870.0,109860.0,0.86008732]
[1748273273355,0.24917048,109870.0,109860.0,1.36604946]
[1748273275169,0.24917048,109870.0,109860.0,1.37515178]
[1748273276524,0.24917048,109870.0,109860.0,1.35694705]
[1748273276825,0.24917048,109870.0,109860.0,1.36604946]
[1748273277743,0.24917048,109870.0,109860.0,1.92017864]
[1748273277925,0.24917048,109870.0,109860.0,1.86290919]
[1748273278066,0.24917048,109870.0,109860.0,1.5261969]
[1748273278459,0.24917048,109870.0,109860.0,1.85380678]
[1748273278632,0.24917048,109870.0,109860.0,1.86290927]
[1748273279873,0.24917048,109870.0,109860.0,1.6717569]
[1748273280255,0.24917048,109870.0,109860.0,1.3737569]
[1748273280455,0.24917048,109870.0,109860.0,1.5193169]
[1748273280837,0.24917048,109870.0,109860.0,1.02245717]
[1748273281886,0.33871604,109870.0,109860.0,0.04003744]
[1748273282073,0.33871604,109870.0,109860.0,0.68245717]
[1748273282239,0.33871604,109870.0,109860.0,0.53689717]
[1748273282440,0.33871604,109870.0,109860.0,0.68245717]
[1748273282712,0.33871604,109870.0,109860.0,0.49408424]
[1748273285527,0.2546522,109860.0,109850.0,0.50771222]
[1748273285643,0.34419776,109860.0,109850.0,0.01085249]
[1748273285841,0.43371927,109860.0,109850.0,0.01085249]
[1748273286253,0.43371927,109860.0,109850.0,0.0193742]
[1748273286498,0.43371927,109860.0,109850.0,0.00852171]
[1748273286818,0.43371927,109860.0,109850.0,0.01052171]
[1748273287261,0.43371927,109860.0,109840.0,0.5130461]
[1748273287262,0.1911696,109850.0,109840.0,0.5130461]
[1748273287473,0.34101516,109850.0,109840.0,0.5130461]
[1748273287870,0.40705568,109850.0,109840.0,0.5130461]
[1748273289791,0.40705568,109850.0,109840.0,0.01618637]
[1748273290249,0.255487,109840.0,109830.0,0.49685973]
[1748273290448,0.34503256,109840.0,109830.0,0.49685973]
[1748273291658,0.34503256,109840.0,109830.0,0.51323287]
[1748273292069,0.34503256,109840.0,109830.0,0.51723287]
[1748273293158,0.24576645,109850.0,109830.0,2.86520068]
[1748273293416,0.02730837,109850.0,109840.0,0.69715038]
[1748273293625,0.04551459,109850.0,109840.0,2.33432535]
[1748273293846,0.02730837,109850.0,109840.0,2.36338506]
[1748273294078,0.03641152,109850.0,109840.0,2.36338506]
[1748273294303,0.03641144,109850.0,109840.0,2.70338506]
[1748273294550,0.03641152,109850.0,109840.0,2.70338506]
[1748273294732,0.03641144,109850.0,109840.0,2.70338506]
[1748273295253,0.03641144,109850.0,109840.0,2.71204806]
[1748273296103,0.02730837,109850.0,109840.0,2.71204806]
[1748273296248,0.03641144,109850.0,109840.0,2.71204806]
[1748273296467,0.0325,109860.0,109850.0,0.20937566]
[1748273296696,0.21845868,109860.0,109850.0,1.45828056]
[1748273296914,0.21845868,109860.0,109850.0,1.17913546]
[1748273297143,0.21845868,109860.0,109850.0,1.01106356]
[1748273297339,0.21845868,109860.0,109850.0,1.00196057]
[1748273297568,0.20935677,109860.0,109850.0,1.09353557]
[1748273297793,0.20935677,109860.0,109850.0,1.07808657]
[1748273297998,0.24195677,109860.0,109850.0,1.09760206]
[1748273298144,0.24195677,109860.0,109850.0,1.08849899]
[1748273298346,0.23285461,109860.0,109850.0,1.09760214]
[1748273298545,0.34529793,109860.0,109850.0,0.51637522]
[1748273298742,0.34629793,109860.0,109850.0,0.51637522]
[1748273298991,0.34729793,109860.0,109850.0,0.51637522]
[1748273302193,0.34729793,109860.0,109850.0,0.20158194]
[1748273302194,0.25775237,109860.0,109850.0,0.8959279]
[1748273302392,0.24864988,109860.0,109850.0,0.8660919]
[1748273304882,0.24864988,109860.0,109850.0,0.69844167]
[1748273305087,0.24864988,109860.0,109850.0,0.70754499]
[1748273305846,0.24864988,109860.0,109850.0,0.99411714]
[1748273306023,0.24864988,109860.0,109850.0,0.98120114]
[1748273306465,0.24864988,109860.0,109850.0,0.87960114]
[1748273306670,0.24864988,109860.0,109850.0,0.87049799]
[1748273306929,0.24864988,109860.0,109850.0,0.70754499]
[1748273307447,0.24864988,109860.0,109850.0,0.71664822]
[1748273308825,0.24864988,109860.0,109850.0,0.69844167]
[1748273309026,0.24864988,109860.0,109850.0,0.70754499]
[1748273309425,0.24864988,109860.0,109850.0,0.51637522]
[1748273315155,0.39607748,109860.0,109850.0,0.01951549]
[1748273316819,0.39607748,109860.0,109850.0,0.008663]
[1748273317042,0.45890468,109860.0,109850.0,0.008663]
[1748273319307,0.40102264,109860.0,109850.0,0.008663]
[1748273320752,0.89788237,109860.0,109850.0,0.008663]
[1748273321156,0.40102264,109860.0,109850.0,0.008663]
[1748273322908,0.54662264,109860.0,109850.0,0.008663]
[1748273328800,1.04348237,109860.0,109850.0,0.008663]
[1748273329773,1.13300388,109860.0,109850.0,0.008663]
[1748273329974,1.13300388,109860.0,109830.0,0.52408536]
[1748273330181,0.26459073,109840.0,109830.0,0.51323287]
[1748273330331,0.35413629,109840.0,109830.0,0.51323287]
[1748273330745,0.49973629,109840.0,109830.0,0.51323287]
[1748273330961,0.49973629,109840.0,109830.0,0.01637314]
[1748273331216,0.19120441,109830.0,109820.0,0.93194082]
[1748273331409,0.19120441,109830.0,109820.0,0.92283502]
[1748273331536,0.22350441,109830.0,109820.0,0.92283502]
[1748273331753,0.19120441,109830.0,109820.0,0.92283502]
[1748273332409,0.19120441,109830.0,109820.0,0.92298423]
[1748273332609,0.19120441,109830.0,109820.0,0.9376565]
[1748273332830,0.19120441,109830.0,109820.0,0.8645337]
[1748273333047,0.19120441,109830.0,109820.0,1.04664989]
[1748273333262,0.20030914,109830.0,109820.0,1.05575561]
[1748273333470,0.19120441,109830.0,109820.0,0.8962337]
[1748273333691,0.19120441,109830.0,109820.0,0.78111682]
[1748273334517,0.19120441,109830.0,109820.0,0.96323301]
[1748273334954,0.19120441,109830.0,109820.0,0.64021682]
[1748273335300,0.19120441,109830.0,109820.0,0.62516321]
[1748273338855,0.19120441,109830.0,109820.0,0.51168121]
[1748273339058,0.19120441,109830.0,109820.0,0.61289421]
[1748273340226,0.19120441,109830.0,109820.0,0.51168121]
[1748273340463,0.19120441,109830.0,109820.0,0.61289421]
[1748273340777,0.19120441,109830.0,109820.0,0.8041162]
[1748273341776,0.19120441,109830.0,109820.0,0.61289421]
[1748273342233,0.19120441,109830.0,109820.0,0.51168121]
[1748273343079,0.19120441,109830.0,109820.0,0.65871721]
[1748273343922,0.19120441,109830.0,109820.0,0.8408334]
[1748273344655,0.19120441,109830.0,109820.0,1.16398104]
[1748273344825,0.19120441,109830.0,109820.0,1.22125065]
[1748273345038,0.19120441,109830.0,109820.0,1.1639812]
[1748273345246,0.19120441,109830.0,109820.0,1.17308684]
[1748273345636,0.19120441,109830.0,109820.0,1.18753002]
[1748273347573,0.19120441,109830.0,109820.0,1.19663558]
[1748273347974,0.19120441,109830.0,109820.0,1.69387755]
[1748273350618,0.19120441,109830.0,109820.0,1.68477199]
[1748273352349,0.19120441,109830.0,109820.0,1.67566635]
[1748273352559,0.1820996,109830.0,109820.0,1.67566635]
[1748273352759,0.1820996,109830.0,109820.0,1.68477207]
[1748273353441,0.1820996,109830.0,109820.0,1.69387763]
[1748273354510,0.1820996,109830.0,109820.0,1.71597207]
[1748273355054,0.1820996,109830.0,109820.0,1.68477207]
[1748273355781,0.1820996,109830.0,109820.0,1.69387771]
[1748273356528,0.33482858,109840.0,109820.0,1.70636611]
[1748273356735,0.18208302,109840.0,109830.0,1.1762013]
[1748273356931,0.18208302,109840.0,109830.0,1.18530628]
[1748273357145,0.18208302,109840.0,109830.0,0.9941017]
[1748273357335,0.18208302,109840.0,109830.0,1.19397855]
[1748273358627,0.18208302,109840.0,109830.0,1.19497855]
[1748273358803,0.18208302,109840.0,109830.0,0.71237088]
[1748273360587,0.18208302,109840.0,109830.0,0.5211663]
[1748273360800,0.21328302,109840.0,109830.0,0.7032659]
[1748273361648,0.21328302,109840.0,109830.0,1.20031675]
[1748273361803,0.21328302,109840.0,109830.0,1.20942173]
[1748273361995,0.18208302,109840.0,109830.0,1.20942173]
[1748273362839,0.18208302,109840.0,109830.0,1.02732213]
[1748273363554,0.279844,109850.0,109840.0,0.18208302]
[1748273363764,0.01820755,109840.0,109830.0,0.64433364]
[1748273366245,0.20939479,109840.0,109830.0,1.7233528]
[1748273367001,0.01820721,109840.0,109830.0,1.7324572]
[1748273367203,0.02731119,109840.0,109830.0,1.7651572]
[1748273368062,0.03641509,109840.0,109830.0,1.7651572]
[1748273369497,0.22760226,109840.0,109830.0,1.7651572]
[1748273369732,0.21849878,109840.0,109830.0,1.7560528]
[1748273370232,0.21849878,109840.0,109830.0,1.76515728]
[1748273370654,0.21849878,109840.0,109830.0,1.73245728]
[1748273370987,0.02731161,109840.0,109830.0,1.7324567]
[1748273371323,0.03641567,109840.0,109830.0,1.7654567]
[1748273372207,0.21849869,109840.0,109830.0,1.7654567]
[1748273372981,0.02731161,109840.0,109830.0,1.7654567]
[1748273373115,0.03641567,109840.0,109830.0,1.7654567]
[1748273373355,0.03641567,109840.0,109830.0,1.6198567]
[1748273373529,0.01820721,109840.0,109830.0,2.8888657]
[1748273373945,0.00910348,109840.0,109830.0,2.8888657]
[1748273374193,0.01820721,109840.0,109830.0,2.8888657]
[1748273375241,0.01820721,109840.0,109830.0,2.87442252]
[1748273375667,0.05226853,109850.0,109840.0,0.6135943]
[1748273375866,0.25254104,109850.0,109840.0,3.48567228]
[1748273376087,0.04316522,109850.0,109840.0,2.91539228]
[1748273376304,0.03406248,109850.0,109840.0,3.05988226]
[1748273376511,0.03299695,109850.0,109840.0,3.09588467]
[1748273377989,0.03299695,109850.0,109840.0,2.59812466]
[1748273378368,0.03299695,109850.0,109840.0,2.10142839]
[1748273379019,0.00093447,109850.0,109840.0,2.10142839]
[1748273380648,0.01003712,109850.0,109840.0,2.10142839]
[1748273380862,0.00093447,109850.0,109840.0,2.10142839]
[1748273381076,0.20120697,109850.0,109840.0,1.14565141]
[1748273381286,0.02824375,109850.0,109840.0,1.76639672]
[1748273381491,0.02824317,109850.0,109840.0,1.78460394]
[1748273381716,0.02824309,109850.0,109840.0,1.78460394]
[1748273382122,0.02824309,109850.0,109840.0,1.78456394]
[1748273382300,0.21030954,109850.0,109840.0,1.62075672]
[1748273382449,0.21941269,109850.0,109840.0,1.74814753]
[1748273382654,0.04644956,109850.0,109840.0,1.76635491]
[1748273382889,0.03734624,109850.0,109840.0,1.76635491]
[1748273383073,0.04644947,109850.0,109840.0,1.76635433]
[1748273383533,0.04644947,109850.0,109840.0,1.79705433]
[1748273383806,0.04644947,109850.0,109840.0,1.76635433]
[1748273384712,0.03734624,109850.0,109840.0,1.76635433]
[1748273386863,0.01914002,109850.0,109840.0,1.76635433]
[1748273387001,0.02824309,109850.0,109840.0,1.76635433]
[1748273389265,0.02388309,109850.0,109840.0,1.76635433]
[1748273389480,0.24705277,109850.0,109840.0,1.46847433]
[1748273389691,0.28755609,109850.0,109840.0,1.75725076]
[1748273390099,0.27845344,109850.0,109840.0,1.74814711]